bitfinex/quotes_SOLUSD_20250710
["timestamp","ask_amount","ask_price","bid_price","bid_amount"]
[1752115467999,13.04959781,158.35,158.32,4.04631778]
[1752115468482,13.04959781,158.35,158.28,32.01786059]
[1752115468703,13.04959781,158.35,158.32,4.04631778]
[1752115470877,6.73447309,158.35,158.34,4.04631778]
[1752115471078,6.73447309,158.36,158.34,4.04631778]
[1752115471395,6.73447309,158.36,158.29,6.31744717]
[1752115471396,6.31472594,158.36,158.35,4.04631778]
[1752115471591,13.05799527,158.36,158.28,32.01773615]
[1752115471776,6.74326933,158.35,158.32,4.04631778]
[1752115471984,6.74326933,158.35,158.28,32.01773615]
[1752115472184,6.31552355,158.34,158.33,4.04631778]
[1752115472398,13.06215538,158.34,158.32,4.04631778]
[1752115472573,6.31552355,158.34,158.31,4.04631778]
[1752115472996,13.06239436,158.34,158.28,25.7]
[1752115473201,6.74687081,158.33,158.31,4.04631778]
[1752115473380,6.31552355,158.34,158.31,4.04631778]
[1752115473590,6.7503892,158.33,158.31,4.04631778]
[1752115473780,6.75026813,158.33,158.32,4.04631778]
[1752115474399,6.31592244,158.33,158.32,4.04631778]
[1752115476500,22.16298591,158.35,158.32,4.04631778]
[1752115476690,6.71253959,158.34,158.32,4.04631778]
[1752115476893,22.16298591,158.35,158.32,4.04631778]
[1752115477190,6.71253959,158.34,158.32,4.04631778]
[1752115477382,22.16298591,158.35,158.32,4.04631778]
[1752115477577,6.71336421,158.34,158.32,4.04631778]
[1752115477779,22.16298591,158.35,158.32,4.04631778]
[1752115477979,6.71344649,158.34,158.32,4.04631778]
[1752115478199,22.16298591,158.35,158.32,4.04631778]
[1752115478384,6.71344649,158.34,158.32,4.04631778]
[1752115478593,22.16298591,158.35,158.31,4.07631778]
[1752115478787,6.71409648,158.34,158.32,4.04631778]
[1752115478990,6.71409648,158.33,158.32,4.04631778]
[1752115479183,6.71409648,158.34,158.32,4.04631778]
[1752115479392,6.71409648,158.33,158.32,4.04631778]
[1752115479588,6.71409648,158.34,158.32,4.04631778]
[1752115479793,13.03001892,158.33,158.31,0.03]
[1752115480002,6.31592244,158.33,158.32,4.04631778]
[1752115480217,6.31592244,158.33,158.31,0.03]
[1752115480417,13.03041985,158.33,158.31,0.03]
[1752115480608,6.31592244,158.33,158.31,4.07631778]
[1752115480986,13.03060943,158.33,158.32,4.04631778]
[1752115481190,6.31592244,158.33,158.32,4.04631778]
[1752115481410,13.03060943,158.33,158.32,4.04631778]
[1752115481900,6.31592244,158.33,158.32,4.04631778]
[1752115482197,13.03060943,158.33,158.32,4.04631778]
[1752115482602,6.31592244,158.33,158.32,4.04631778]
[1752115482797,13.03060943,158.33,158.32,4.04631778]
[1752115483218,6.31592244,158.33,158.32,4.04631778]
[1752115483512,13.03060943,158.33,158.32,4.04631778]
[1752115483905,6.31592244,158.33,158.32,4.04631778]
[1752115484104,13.03060943,158.33,158.32,4.04631778]
[1752115484307,6.31592244,158.33,158.31,0.03]
[1752115484506,13.03060943,158.33,158.32,4.04631778]
[1752115485011,6.31592244,158.33,158.32,4.04631778]
[1752115485217,13.03060943,158.33,158.32,4.04631778]
[1752115485622,6.31592244,158.33,158.32,4.04631778]
[1752115485923,13.03060943,158.33,158.32,4.04631778]
[1752115486294,6.31592244,158.33,158.32,4.04631778]
[1752115486500,13.03060943,158.33,158.32,4.04631778]
[1752115486800,6.31592244,158.33,158.32,4.04631778]
[1752115487012,13.03060943,158.33,158.32,4.04631778]
[1752115488616,13.03060943,158.33,158.31,0.03]
[1752115488811,15.84786119,158.35,158.32,4.04631778]
[1752115488997,6.7099328,158.34,158.32,4.04631778]
[1752115489198,6.7099328,158.33,158.32,4.04631778]
[1752115490314,13.02585524,158.33,158.32,4.04631778]
[1752115498537,13.02585524,158.33,158.31,0.03]
[1752115498838,6.7099328,158.32,158.31,0.03]
[1752115499135,29.54806101,158.32,158.31,0.03]
[1752115499516,35.86438238,158.32,158.31,0.03]
[1752115504052,74.38438238,158.32,158.31,0.03]
[1752115504562,18.79181043,158.31,158.27,1.274438]
[1752115504744,13.02705219,158.3,158.27,1.274438]
[1752115505433,28.81985067,158.3,158.27,1.274438]
[1752115505635,6.7099328,158.29,158.27,1.274438]
[1752115506032,6.7099328,158.29,158.28,4.04631778]
[1752115506250,6.31684586,158.31,158.28,4.04631778]
[1752115506559,6.31684586,158.31,158.3,4.04631778]
[1752115507737,13.00380859,158.32,158.3,4.04631778]
[1752115507946,6.31647911,158.32,158.31,4.04631778]
[1752115508257,0.06,158.34,158.31,4.04631778]
[1752115508258,13.0019557,158.33,158.31,4.04631778]
[1752115508449,6.31609919,158.33,158.32,4.04631778]
[1752115508965,6.37567869,158.34,158.32,4.04631778]
[1752115509262,6.37567869,158.34,158.33,4.04631778]
[1752115509876,0.06,158.34,158.33,4.04631778]
[1752115510869,6.37552355,158.34,158.33,4.04631778]
[1752115511069,0.06,158.34,158.33,4.04631778]
[1752115518116,0.06,158.34,158.29,6.31743954]
[1752115518411,0.06,158.34,158.33,4.04631778]
[1752115519335,0.06,158.34,158.28,1.5009]
[1752115519509,0.06,158.34,158.32,4.04631778]
[1752115519692,0.06,158.34,158.33,4.04631778]
[1752115520835,6.37552355,158.34,158.33,4.04631778]
[1752115521224,0.06,158.34,158.33,4.04631778]
[1752115524714,0.06,158.34,158.33,23.28631778]
[1752115524933,0.06,158.34,158.33,25.5572393]
[1752115525131,0.06,158.34,158.33,31.87316174]
[1752115528043,0.06,158.34,158.33,25.5572393]
[1752115528262,0.06,158.34,158.33,6.3172393]
[1752115528456,0.06,158.34,158.33,25.5572393]
[1752115529576,0.06,158.34,158.31,26.0]
[1752115529778,0.06,158.34,158.31,6.3172393]
[1752115530652,0.06,158.34,158.31,25.5572393]
[1752115530979,25.16904973,158.34,158.28,0.03]
[1752115531267,25.16904973,158.34,158.3,6.3172393]
[1752115531268,6.7229818,158.33,158.3,6.3172393]
[1752115531976,6.31632137,158.32,158.3,6.3172393]
[1752115534086,6.31632137,158.32,158.29,6.3172393]
[1752115534265,6.31592244,158.33,158.3,6.3172393]
[1752115534947,13.26490521,158.33,158.3,6.3172393]
[1752115535281,6.37567027,158.34,158.32,6.3172393]
[1752115535780,13.32387124,158.34,158.32,6.3172393]
[1752115535994,6.94850459,158.33,158.31,6.3172393]
[1752115536278,13.32417486,158.34,158.32,6.3172393]
[1752115538588,13.32417486,158.34,158.31,6.3172393]
[1752115538881,6.94850459,158.33,158.3,6.3172393]
[1752115539186,6.94850459,158.33,158.28,19.27]
[1752115539485,6.94850459,158.33,158.28,6.3472393]
[1752115539486,13.26574389,158.33,158.28,6.3472393]
[1752115540796,6.31672035,158.31,158.28,0.03]
[1752115540970,6.31672035,158.31,158.28,6.3472393]
[1752115541283,6.31672035,158.31,158.29,6.3172393]
[1752115542555,6.31632137,158.32,158.29,6.3172393]
[1752115542750,6.31632137,158.32,158.3,6.3172393]
[1752115543260,13.24908197,158.32,158.3,6.3172393]
[1752115543466,6.31632137,158.32,158.28,0.03]
[1752115543651,6.31632137,158.32,158.3,6.3172393]
[1752115544075,6.31632137,158.32,158.28,0.03]
[1752115544266,6.31632137,158.32,158.3,6.3172393]
[1752115544466,6.31632137,158.32,158.28,0.03]
[1752115544674,6.31632137,158.32,158.3,6.3172393]
[1752115545682,6.31632137,158.32,158.31,6.3172393]
[1752115546661,6.31607867,158.33,158.31,6.3172393]
[1752115546863,6.31607867,158.33,158.32,6.3172393]
[1752115549394,6.93195593,158.33,158.32,6.3172393]
[1752115549578,13.30759857,158.34,158.32,6.3172393]
[1752115549973,13.30759857,158.34,158.28,6.34753062]
[1752115550290,13.30759857,158.34,158.33,6.3172393]
[1752115554181,13.30759857,158.34,158.29,26.0]
[1752115554376,6.99195593,158.34,158.33,6.3172393]
[1752115555193,13.30747948,158.34,158.33,6.3172393]
[1752115555790,6.99195593,158.34,158.33,6.3172393]
[1752115555996,0.06,158.34,158.33,6.3172393]
[1752115560473,0.06,158.34,158.33,12.63316174]
[1752115562795,0.06,158.34,158.33,6.3172393]
[1752115567602,0.06,158.34,158.33,25.5572393]
[1752115574410,0.06,158.34,158.33,6.3172393]
[1752115574701,0.06,158.34,158.33,25.5572393]
[1752115576881,0.06,158.34,158.32,6.3172393]
[1752115577096,0.06,158.34,158.32,25.5572393]
[1752115578383,0.06,158.34,158.31,6.3472393]
[1752115578621,6.97275564,158.34,158.31,6.3472393]
[1752115579686,6.31632137,158.32,158.31,6.3472393]
[1752115581613,13.22884504,158.33,158.31,6.3472393]
[1752115581911,6.37568032,158.34,158.32,6.3172393]
[1752115582106,13.29020394,158.34,158.31,0.03]
[1752115582290,6.37568032,158.34,158.33,6.3172393]
[1752115583412,0.06,158.34,158.33,6.3172393]
[1752115583712,0.06,158.34,158.33,5.2684481]
[1752115587820,6.37552355,158.34,158.33,5.2684481]
[1752115588495,13.25417869,158.34,158.33,5.2684481]
[1752115596822,13.25417869,158.34,158.33,4.04561196]
[1752115597924,13.25417869,158.34,158.31,0.03]
[1752115598623,6.87865514,158.33,158.31,4.07561196]
[1752115599019,6.37552355,158.34,158.31,4.07561196]
[1752115599204,6.83893037,158.33,158.31,4.07561196]
[1752115599404,0.06,158.34,158.31,4.07561196]
[1752115599724,6.83860661,158.33,158.31,4.07561196]
[1752115599920,6.83860661,158.32,158.31,4.07561196]
[1752115600125,6.83860661,158.33,158.31,4.07561196]
[1752115600324,0.06,158.34,158.31,4.07561196]
[1752115600509,6.83814336,158.33,158.32,4.04561196]
[1752115600715,13.1540658,158.33,158.32,4.04561196]
[1752115600909,13.1540658,158.33,158.32,6.32261887]
[1752115601722,13.15348095,158.33,158.32,6.32261887]
[1752115602428,6.83755851,158.33,158.32,6.32261887]
[1752115602626,6.89631829,158.34,158.32,6.32261887]
[1752115602925,6.89631829,158.34,158.33,6.32261887]
[1752115603099,0.06,158.34,158.33,6.32261887]
[1752115604524,0.06,158.34,158.31,0.03]
[1752115604700,0.06,158.34,158.33,6.32261887]
[1752115608120,0.06,158.34,158.33,6.35261887]
[1752115608326,6.91409007,158.34,158.33,6.35261887]
[1752115608844,6.91409007,158.34,158.33,0.03]
[1752115609009,6.91409007,158.34,158.33,6.35261887]
[1752115609210,13.22961362,158.34,158.33,0.03]
[1752115609442,13.22961362,158.34,158.33,6.35261887]
[1752115622353,6.91409007,158.34,158.33,51.59261887]
[1752115622521,0.06,158.37,158.33,59.55554131]
[1752115622720,6.37178277,158.44,158.37,6.3143272]
[1752115622939,6.37178277,158.44,158.38,19.24]
[1752115623138,6.37178277,158.44,158.43,4.04006859]
[1752115623332,22.15062649,158.44,158.38,19.24]
[1752115623536,22.15062649,158.44,158.41,4.04006859]
[1752115624838,15.83884372,158.44,158.41,6.31474209]
[1752115630536,18.85181043,158.44,158.41,6.31474209]
[1752115631246,6.31193587,158.43,158.41,6.31474209]
[1752115633048,6.31193587,158.43,158.38,25.55390472]
[1752115633347,6.31193587,158.43,158.41,6.31474209]
[1752115633527,6.31193587,158.43,158.38,19.24]
[1752115633728,6.31193587,158.43,158.41,6.31474209]
[1752115636028,6.31193587,158.43,158.4,6.31474209]
[1752115639372,6.31193587,158.43,158.39,6.31474209]
[1752115640257,6.31193587,158.43,158.4,6.31474209]
[1752115642752,6.31193587,158.43,158.41,6.31474209]
[1752115645685,6.31193587,158.43,158.37,25.53417226]
[1752115645686,0.06,158.44,158.42,6.31474209]
[1752115645843,0.06,158.44,158.43,6.31474209]
[1752115646168,6.37153749,158.44,158.42,6.31474209]
[1752115646471,6.37153749,158.44,158.41,6.31474209]
[1752115646863,6.37153749,158.44,158.41,4.0413391]
[1752115648368,0.06,158.44,158.41,4.0413391]
[1752115649671,0.06,158.44,158.42,4.0413391]
[1752115651671,0.06,158.44,158.41,4.0413391]
[1752115652346,0.06,158.44,158.42,4.0413391]
[1752115653458,0.06,158.44,158.43,4.0413391]
[1752115654753,0.06,158.44,158.4,28.92290773]
[1752115654959,0.06,158.44,158.41,4.68951091]
[1752115655165,0.06,158.44,158.43,4.0413391]
[1752115655567,0.06,158.44,158.43,4.68825301]
[1752115655765,0.06,158.44,158.43,8.72959211]
[1752115656274,0.06,158.44,158.43,27.94959211]
[1752115659252,0.06,158.44,158.43,23.2613391]
[1752115659453,0.06,158.44,158.43,27.94507435]
[1752115659653,6.31000244,158.48,158.43,27.94507435]
[1752115659855,6.31000244,158.48,158.45,4.0413391]
[1752115660058,6.31000244,158.48,158.43,19.22]
[1752115660365,6.31000244,158.48,158.45,4.0413391]
[1752115661968,18.79181043,158.49,158.45,4.0413391]
[1752115663071,6.30994447,158.48,158.45,4.0413391]
[1752115663253,6.30994447,158.48,158.46,4.0413391]
[1752115663766,18.79181043,158.51,158.47,4.0413391]
[1752115663957,6.30875023,158.51,158.5,4.0413391]
[1752115666885,6.30875023,158.51,158.5,6.3079619]
[1752115667582,6.30875023,158.51,158.49,6.3079619]
[1752115667783,24.95839909,158.51,158.48,19.22]
[1752115667966,24.95839909,158.51,158.43,26.0]
[1752115667967,31.26636099,158.51,158.46,19.22]
[1752115668280,31.26636099,158.51,158.46,25.5279619]
[1752115668484,25.09977233,158.5,158.46,19.22]
[1752115668686,25.09977233,158.5,158.45,6.3079619]
[1752115668687,6.3079619,158.49,158.45,6.3079619]
[1752115669893,6.30954634,158.49,158.46,6.3079619]
[1752115673374,6.30954634,158.49,158.45,19.2]
[1752115673665,6.30954634,158.49,158.46,6.3079619]
[1752115674079,6.30954634,158.49,158.45,25.5079619]
[1752115675497,38.42,158.53,158.45,25.5079619]
[1752115675498,18.79181043,158.53,158.48,6.3079619]
[1752115675669,18.64964886,158.53,158.5,6.3079619]
[1752115676994,6.30835225,158.52,158.5,6.3079619]
[1752115680092,6.30835225,158.52,158.46,6.31066737]
[1752115680310,6.30835225,158.52,158.5,6.3079619]
[1752115684016,6.30835225,158.52,158.49,6.3079619]
[1752115684820,18.79181043,158.51,158.43,32.3119283]
[1752115684994,6.3079619,158.5,158.46,6.3079619]
[1752115685498,25.09977233,158.51,158.46,6.3079619]
[1752115686006,6.30914826,158.5,158.46,6.3079619]
[1752115686715,12.61711016,158.5,158.46,6.3079619]
[1752115686916,6.30914826,158.5,158.46,6.3079619]
[1752115687101,12.61711016,158.5,158.46,6.3079619]
[1752115690206,28.38998082,158.5,158.46,6.3079619]
[1752115690410,28.38998082,158.5,158.45,19.2]
[1752115690619,28.38998082,158.5,158.46,6.3079619]
[1752115690816,28.38998082,158.5,158.45,19.2]
[1752115691022,28.38998082,158.5,158.46,6.3079619]
[1752115692724,22.08201892,158.5,158.46,6.3079619]
[1752115694612,22.08201892,158.5,158.46,25.5079619]
[1752115695418,22.08201892,158.5,158.46,6.3079619]
[1752115695727,22.08201892,158.5,158.46,25.5079619]
[1752115696222,28.38998082,158.5,158.46,25.5079619]
[1752115696421,22.08201892,158.5,158.46,25.5079619]
[1752115696628,28.38998082,158.5,158.46,25.5079619]
[1752115696921,6.30914826,158.5,158.46,25.5079619]
[1752115699311,6.30914826,158.5,158.47,4.71959793]
[1752115699614,6.30914826,158.5,158.46,25.5079619]
[1752115699814,6.30914826,158.5,158.47,4.7197624]
[1752115700027,6.30914826,158.5,158.46,25.5079619]
[1752115700332,6.30914826,158.5,158.47,4.71976188]
[1752115700510,6.30914826,158.5,158.46,25.5079619]
[1752115700711,6.30914826,158.5,158.47,4.7211224]
[1752115700912,6.30914826,158.5,158.46,23.23863106]
[1752115701112,6.30914826,158.5,158.47,4.7211224]
[1752115701409,6.30914826,158.5,158.46,23.23863106]
[1752115701609,6.30914826,158.5,158.47,4.72142344]
[1752115701912,6.30914826,158.5,158.46,23.23863106]
[1752115702112,6.30914826,158.5,158.47,4.72041667]
[1752115702311,6.30914826,158.5,158.46,23.23863106]
[1752115703429,26.12064998,158.5,158.46,19.2]
[1752115704009,26.12064998,158.5,158.46,23.23863106]
[1752115704551,22.08201892,158.5,158.46,23.23863106]
[1752115705114,6.30914826,158.5,158.47,4.03863106]
[1752115706024,6.30879684,158.51,158.49,4.03863106]
[1752115706219,6.30879684,158.51,158.5,4.03863106]
[1752115706624,6.30879684,158.51,158.49,4.03863106]
[1752115706941,6.30879684,158.51,158.49,6.30778653]
[1752115707139,0.03,158.52,158.49,6.30778653]
[1752115707514,0.03,158.52,158.5,6.30778653]
[1752115709516,0.03,158.52,158.51,6.30778653]
[1752115710409,0.03,158.52,158.51,25.50778653]
[1752115712332,0.03,158.52,158.51,6.30778653]
[1752115712639,0.03,158.52,158.48,32.30778653]
[1752115713017,0.03,158.52,158.48,25.50778653]
[1752115713738,0.03,158.52,158.51,6.30778653]
[1752115718533,0.03,158.52,158.5,6.30778653]
[1752115718843,0.03,158.52,158.51,19.2]
[1752115725033,0.03,158.52,158.5,25.50778653]
[1752115730832,0.03,158.52,158.5,19.2]
[1752115731151,0.03,158.52,158.5,23.23653634]
[1752115732038,0.03,158.52,158.51,4.03653634]
[1752115735258,0.03,158.52,158.5,23.23653634]
[1752115735749,4.03653634,158.51,158.47,4.03653634]
[1752115736137,4.03653634,158.51,158.46,4.03653634]
[1752115736458,4.03653634,158.51,158.47,19.2]
[1752115737342,6.30914826,158.5,158.46,23.23653634]
[1752115738370,6.30914826,158.5,158.48,4.03653634]
[1752115739053,6.30914826,158.5,158.48,6.30911903]
[1752115739562,25.10056066,158.51,158.47,6.30911903]
[1752115740346,6.33851484,158.52,158.5,6.30911903]
[1752115740742,6.33851484,158.52,158.5,19.2]
[1752115740941,24.9881637,158.52,158.5,19.2]
[1752115741460,6.33851484,158.52,158.5,19.2]
[1752115742078,0.03,158.52,158.5,25.50911903]
[1752115742259,0.03,158.52,158.51,6.30911903]
[1752115743442,0.03,158.52,158.51,12.61786926]
[1752115743953,6.30487172,158.61,158.54,26.0]
[1752115744159,6.30487172,158.61,158.6,6.30911903]
[1752115744355,6.30487172,158.61,158.59,6.30911903]
[1752115744759,12.61399075,158.61,158.56,6.30911903]
[1752115744947,25.10092946,158.6,158.55,25.50911903]
[1752115745141,6.30911903,158.59,158.55,19.2]
[1752115745670,6.30596544,158.58,158.55,19.2]
[1752115747250,6.30596544,158.58,158.55,25.50911903]
[1752115751073,18.79181043,158.57,158.49,1.5264]
[1752115751279,6.30911903,158.56,158.51,19.18]
[1752115751451,6.30911903,158.56,158.51,25.48911903]
[1752115751651,6.30911903,158.54,158.51,19.18]
[1752115752047,0.14216157,158.56,158.49,26.0]
[1752115752271,6.30911903,158.55,158.49,45.18]
[1752115752551,6.30911903,158.55,158.5,6.30911903]
[1752115752751,6.30911903,158.55,158.49,45.18]
[1752115752948,6.30795433,158.53,158.49,25.48911903]
[1752115753183,6.30795433,158.53,158.5,6.30911903]
[1752115755571,6.30795433,158.53,158.49,6.30911903]
[1752115755787,6.30795433,158.53,158.46,38.55810292]
[1752115755788,12.61707336,158.53,158.46,26.0]
[1752115756075,18.79181043,158.52,158.47,25.48911903]
[1752115756270,24.95876789,158.52,158.47,25.48911903]
[1752115758176,6.30875023,158.51,158.47,25.48911903]
[1752115758481,25.10092946,158.5,158.44,26.0]
[1752115758671,6.30911903,158.49,158.45,19.18]
[1752115758976,6.30911903,158.49,158.45,25.48911903]
[1752115759184,6.30911903,158.49,158.45,25.52911903]
[1752115759357,25.10092946,158.5,158.45,6.30911903]
[1752115759567,25.10092946,158.5,158.45,25.52911903]
[1752115760364,12.61866537,158.49,158.45,25.52911903]
[1752115760558,6.30954634,158.49,158.45,25.52911903]
[1752115761078,6.30954634,158.49,158.46,6.30911903]
[1752115761471,6.30954634,158.49,158.47,6.30911903]
[1752115761981,6.30954634,158.49,158.46,6.30911903]
[1752115762357,6.30954634,158.49,158.46,25.52911903]
[1752115763556,6.30954634,158.49,158.46,19.22]
[1752115765784,28.39253122,158.49,158.41,32.31259212]
[1752115765968,6.30911903,158.48,158.43,32.30911903]
[1752115766159,6.30911903,158.47,158.43,45.22]
[1752115766363,22.08341219,158.49,158.43,51.52911903]
[1752115766364,25.10092946,158.48,158.43,51.52911903]
[1752115766796,25.10092946,158.48,158.43,51.54911903]
[1752115767314,6.31034265,158.47,158.44,6.30911903]
[1752115768967,6.31004825,158.48,158.43,45.24]
[1752115769167,162.17150425,158.52,158.47,6.30911903]
[1752115769368,18.64964886,158.51,158.47,6.30911903]
[1752115769569,6.30875023,158.51,158.48,6.30911903]
[1752115769767,6.30875023,158.51,158.49,6.30911903]
[1752115769984,6.30875023,158.51,158.5,6.30911903]
[1752115770187,6.30843721,158.52,158.5,6.30911903]
[1752115773396,6.30843721,158.52,158.47,19.24]
[1752115773576,6.30843721,158.52,158.5,6.30911903]
[1752115773785,6.33843721,158.52,158.5,6.30911903]
[1752115774073,6.33843721,158.52,158.47,19.54]
[1752115774283,6.30911903,158.49,158.47,0.3]
[1752115774681,6.30911903,158.5,158.47,0.3]
[1752115775400,6.30954634,158.49,158.47,0.3]
[1752115779418,12.61866537,158.49,158.47,0.3]
[1752115780786,25.10092946,158.48,158.47,0.3]
[1752115782704,31.41087393,158.48,158.47,0.3]
[1752115785313,6.30994447,158.48,158.47,0.3]
[1752115785687,12.6190635,158.48,158.47,0.3]
[1752115786797,6.30994447,158.48,158.47,0.3]
[1752115789714,6.30911903,158.49,158.47,0.3]
[1752115790299,28.39131251,158.5,158.47,0.3]
[1752115797805,22.08219348,158.5,158.47,0.3]
[1752115798007,28.39131251,158.5,158.47,0.3]
[1752115798208,6.30914826,158.5,158.48,6.30911903]
[1752115799926,6.30914826,158.5,158.49,6.30911903]
[1752115800304,6.33835225,158.52,158.49,6.30911903]
[1752115801419,6.33835225,158.52,158.48,6.30911903]
[1752115801599,12.76488759,158.52,158.48,6.30911903]
[1752115801796,12.64747128,158.52,158.48,6.30911903]
[1752115802199,6.33835225,158.52,158.48,6.30911903]
[1752115802402,19.07574909,158.52,158.48,6.30911903]
[1752115802622,12.64747128,158.52,158.48,6.30911903]
[1752115803619,6.33835225,158.52,158.48,6.30911903]
[1752115803815,19.09155438,158.52,158.48,6.30911903]
[1752115804135,12.64747128,158.52,158.48,6.30911903]
[1752115804324,6.33835225,158.52,158.48,6.30911903]
[1752115804529,19.08481382,158.52,158.48,6.30911903]
[1752115804828,12.64747128,158.52,158.48,6.30911903]
[1752115805016,6.33835225,158.52,158.48,6.30911903]
[1752115805210,19.11671978,158.52,158.48,6.30911903]
[1752115805417,12.64747128,158.52,158.48,6.30911903]
[1752115807799,12.64747128,158.52,158.47,25.82911903]
[1752115809419,6.30911903,158.49,158.47,0.3]
[1752115809732,6.30911903,158.48,158.47,0.3]
[1752115810805,12.6190635,158.48,158.47,0.3]
[1752115812112,6.30994447,158.48,158.47,0.3]
[1752115815638,6.30875023,158.51,158.47,6.60911903]
[1752115815840,12.79126188,158.52,158.5,6.30911903]
[1752115816032,6.33846992,158.52,158.5,6.30911903]
[1752115817443,0.03,158.52,158.5,6.30911903]
[1752115819036,0.03,158.52,158.51,6.30911903]
[1752115819429,0.03,158.52,158.51,12.61786926]
[1752115819826,0.03,158.52,158.51,19.05646926]
[1752115820031,0.03,158.52,158.51,46.69566926]
[1752115820229,6.33571637,158.59,158.52,26.0]
[1752115820445,6.33571637,158.59,158.58,6.30911903]
[1752115820750,0.03,158.59,158.58,6.30911903]
[1752115822149,0.03,158.59,158.57,19.22]
[1752115823455,6.33556781,158.59,158.57,19.22]
[1752115824730,12.64468684,158.59,158.54,6.30911903]
[1752115824938,6.30911903,158.58,158.55,19.22]
[1752115825444,6.30636312,158.57,158.55,19.22]
[1752115826454,0.03,158.59,158.56,6.30911903]
[1752115826627,0.03,158.59,158.57,6.30911903]
[1752115827234,0.03,158.59,158.58,6.30911903]
[1752115828844,0.03,158.59,158.57,6.30911903]
[1752115830373,18.67964886,158.59,158.55,19.22]
[1752115830553,6.30596544,158.58,158.55,19.22]
[1752115830746,6.30596544,158.58,158.55,25.52911903]
[1752115831070,24.95876789,158.57,158.53,6.30911903]
[1752115831638,24.95876789,158.57,158.49,6.30915699]
[1752115831879,24.95876789,158.57,158.52,6.30911903]
[1752115832554,6.30676084,158.56,158.52,6.30911903]
[1752115835645,6.30676084,158.56,158.53,6.30911903]
[1752115835977,6.30596544,158.58,158.55,6.30911903]
[1752115836560,6.30596544,158.58,158.56,6.30911903]
[1752115837782,31.2943357,158.59,158.54,6.30911903]
[1752115838163,24.98521667,158.59,158.55,6.30911903]
[1752115838580,24.98521667,158.59,158.56,6.30911903]
[1752115840961,24.98521667,158.59,158.55,6.30911903]
[1752115842579,24.98521667,158.59,158.53,19.22]
[1752115842778,47.05825524,158.59,158.55,6.30911903]
[1752115842987,47.05825524,158.59,158.54,6.30911903]
[1752115843993,47.05825524,158.59,158.53,19.22]
[1752115844172,47.05825524,158.59,158.54,6.30911903]
[1752115848099,6.30911903,158.56,158.5,0.3]
[1752115848284,6.30911903,158.56,158.51,6.30911903]
[1752115849095,6.30911903,158.55,158.51,6.30911903]
[1752115849392,6.30755645,158.54,158.51,6.30911903]
[1752115849771,6.30755645,158.54,158.5,6.60911903]
[1752115850705,31.26513101,158.57,158.52,6.30911903]
[1752115850998,24.95601198,158.57,158.52,6.30911903]
[1752115851189,31.26513101,158.57,158.52,6.30911903]
[1752115853201,31.26513101,158.57,158.5,6.60913188]
[1752115853402,31.26513101,158.57,158.52,6.30911903]
[1752115853593,31.26513101,158.57,158.51,6.30911903]
[1752115853789,31.26513101,158.57,158.51,25.50911903]
[1752115854574,31.26513101,158.57,158.52,6.30911903]
[1752115855192,24.95601198,158.57,158.52,6.30911903]
[1752115855401,31.26513101,158.57,158.52,6.30911903]
[1752115860103,24.95601198,158.57,158.52,6.30911903]
[1752115860693,24.95601198,158.57,158.52,6.60911903]
[1752115861297,6.46497539,158.56,158.52,6.60911903]
[1752115861599,6.46497539,158.56,158.52,0.3]
[1752115861600,6.30911903,158.55,158.52,0.3]
[1752115863211,6.30755645,158.54,158.52,0.3]
[1752115867306,6.30715862,158.55,158.52,0.3]
[1752115867683,12.77724781,158.55,158.52,0.3]
[1752115870610,12.77724781,158.55,158.52,6.60911903]
[1752115870912,40.72467569,158.57,158.52,6.60911903]
[1752115870913,6.30676084,158.56,158.52,6.60911903]
[1752115871115,6.30911903,158.54,158.52,0.3]
[1752115871307,33.15104087,158.53,158.52,1e-08]
[1752115871811,71.57104087,158.53,158.52,1e-08]
[1752115872819,77.8789952,158.53,158.52,1e-08]
[1752115882700,77.9389952,158.53,158.52,1e-08]
[1752115884934,33.20987617,158.53,158.52,1e-08]
[1752115885231,77.9189952,158.53,158.52,1e-08]
[1752115890431,18.79181043,158.52,158.47,6.30911903]
[1752115890618,6.30911903,158.51,158.46,6.30911903]
[1752115891932,6.30914826,158.5,158.46,6.30911903]
[1752115892632,6.30911903,158.48,158.43,6.0897]
[1752115892818,6.30911903,158.47,158.43,12.39881903]
[1752115893127,6.30911903,158.48,158.43,12.39881903]
[1752115893521,6.30911903,158.48,158.44,6.30911903]
[1752115894034,6.31034265,158.47,158.44,6.30911903]
[1752115895612,38.4,158.51,158.43,6.0897]
[1752115895613,38.4,158.51,158.46,6.30911903]
[1752115895937,31.26791615,158.5,158.46,6.30911903]
[1752115896232,24.95879712,158.5,158.46,6.30911903]